bitfinex/quotes_ETHUSD_20250324
["timestamp","ask_amount","ask_price","bid_price","bid_amount"]
[1742844063939,4.77149,2095.8,2095.6,4.641]
[1742844064129,0.21552843,2095.7,2095.6,4.641]
[1742844064542,4.77149,2095.8,2095.6,4.641]
[1742844064737,0.21552843,2095.7,2095.6,6.142269]
[1742844065147,4.77149,2095.8,2095.6,6.142269]
[1742844065344,0.21552843,2095.7,2095.6,6.142269]
[1742844065643,4.77149,2095.8,2095.6,6.142269]
[1742844065825,0.21552843,2095.7,2095.6,6.142269]
[1742844066028,4.77102,2096.0,2095.6,6.142269]
[1742844066228,0.21635303,2095.9,2095.7,0.8314]
[1742844066422,0.21635303,2095.9,2095.8,4.77144]
[1742844066722,7.77084,2096.1,2095.7,5.60302]
[1742844066931,0.21628518,2095.9,2095.7,0.8314]
[1742844067124,4.77111,2096.0,2095.7,0.8314]
[1742844067534,0.2164661,2095.9,2095.7,2.333037]
[1742844067961,0.2164661,2095.9,2095.7,7.104637]
[1742844068167,4.77079,2096.1,2095.7,7.104637]
[1742844068484,0.19820798,2096.0,2095.8,4.77136]
[1742844069889,0.19820798,2096.0,2095.9,4.77122]
[1742844070041,0.19820798,2096.0,2095.9,6.79848626]
[1742844070243,5.59461,2096.7,2096.3,5.56218]
[1742844070555,4.97043942,2096.6,2096.4,4.639]
[1742844071441,4.76985,2096.5,2096.4,4.639]
[1742844071645,4.97092474,2096.5,2096.4,4.639]
[1742844071867,0.20107474,2096.5,2096.4,5.659145]
[1742844072358,4.97092474,2096.5,2096.4,5.659145]
[1742844073691,0.20107474,2096.5,2096.4,5.659145]
[1742844075062,4.97092474,2096.5,2096.4,5.659145]
[1742844075768,0.20107474,2096.5,2096.4,5.659145]
[1742844076175,4.76949,2096.7,2096.4,5.659145]
[1742844076495,0.20148672,2096.6,2096.5,1.1221375]
[1742844077468,0.20148672,2096.6,2096.5,5.8919875]
[1742844077677,7.769,2096.9,2096.5,5.8919875]
[1742844077885,0.19158543,2096.8,2096.5,5.8919875]
[1742844078570,4.7694,2096.7,2096.5,1.1221375]
[1742844078775,4.76922,2096.8,2096.6,1.05311975]
[1742844079583,4.76906,2096.9,2096.6,1.05311975]
[1742844079895,4.76906,2096.9,2096.6,1.83091975]
[1742844080468,4.76906,2096.9,2096.6,6.60052975]
[1742844080800,4.76906,2096.9,2096.6,1.83091975]
[1742844080989,9.53819,2096.9,2096.7,0.66006498]
[1742844081303,9.53811,2096.9,2096.7,0.66006498]
[1742844081600,4.76905,2096.9,2096.7,0.66006498]
[1742844083675,4.76917,2096.8,2096.7,0.66006498]
[1742844083871,4.76917,2096.8,2096.6,1.83091975]
[1742844089330,4.76985,2096.5,2096.3,31.336]
[1742844089480,4.77008,2096.4,2096.3,31.336]
[1742844089680,4.77008,2096.4,2096.3,35.971]
[1742844089987,8.57078,2096.4,2096.3,25.216]
[1742844090193,10.381808,2096.4,2096.3,29.851]
[1742844090598,4.77133,2095.9,2095.5,30.75991]
[1742844090916,4.77127,2095.9,2095.6,4.635]
[1742844091127,4.77145,2095.8,2095.7,4.635]
[1742844092445,4.95051734,2095.8,2095.7,4.635]
[1742844092726,0.17906734,2095.8,2095.7,4.635]
[1742844095836,0.17906734,2095.8,2095.5,25.214]
[1742844096130,4.77189,2095.7,2095.6,4.635]
[1742844096300,4.94247992,2095.7,2095.6,4.635]
[1742844097125,0.17058992,2095.7,2095.6,4.635]
[1742844097298,4.94225992,2095.7,2095.6,4.635]
[1742844098229,0.17058992,2095.7,2095.6,4.635]
[1742844098530,4.77151,2095.8,2095.6,4.635]
[1742844098739,0.17135354,2095.7,2095.6,4.635]
[1742844099128,4.77151,2095.8,2095.6,4.635]
[1742844099335,0.17135354,2095.7,2095.6,4.635]
[1742844099640,4.77151,2095.8,2095.6,4.635]
[1742844099839,0.17135354,2095.7,2095.6,8.925534]
[1742844100038,4.77061,2096.2,2095.8,4.77137]
[1742844100230,0.17247658,2096.1,2095.9,0.8284]
[1742844100429,0.17247658,2096.1,2096.0,5.330967]
[1742844100625,4.77032,2096.3,2096.0,0.559977]
[1742844100825,4.93097384,2096.2,2096.1,4.635]
[1742844102748,0.16042384,2096.2,2096.1,4.635]
[1742844103238,0.15924407,2096.2,2096.1,4.635]
[1742844103439,4.77033,2096.3,2096.1,4.635]
[1742844103609,0.15924407,2096.2,2096.1,4.635]
[1742844103813,4.77033,2096.3,2096.1,5.658449]
[1742844104013,0.16130145,2096.2,2096.1,5.658449]
[1742844104236,4.77033,2096.3,2096.1,5.658449]
[1742844104517,0.16154556,2096.2,2096.1,5.658449]
[1742844104852,4.77033,2096.3,2096.1,5.658449]
[1742844105013,7.77033,2096.3,2096.2,0.5658449]
[1742844107429,7.93372333,2096.3,2096.2,0.5658449]
[1742844107614,3.16339333,2096.3,2096.2,0.5658449]
[1742844108217,0.16339333,2096.3,2096.2,6.0885749]
[1742844108434,3.7872,2096.7,2096.3,4.77028]
[1742844108638,0.16472027,2096.6,2096.5,4.76985]
[1742844108847,0.7872,2097.0,2096.6,4.76947]
[1742844109151,0.16868781,2096.9,2096.6,4.76947]
[1742844109733,4.93762781,2096.9,2096.5,10.157]
[1742844110217,9.70678781,2096.9,2096.5,5.3872]
[1742844110417,4.76923,2096.8,2096.6,3.537622]
[1742844110627,4.93960462,2096.8,2096.6,3.537622]
[1742844111748,4.76939,2096.7,2096.4,25.219]
[1742844112055,4.93936342,2096.6,2096.5,4.634]
[1742844112569,0.16973342,2096.6,2096.5,4.634]
[1742844116149,0.16973342,2096.6,2096.5,9.40385]
[1742844116360,0.16973342,2096.6,2096.5,13.418859]
[1742844116519,7.76895,2096.9,2096.5,13.418859]
[1742844116723,0.16983096,2096.6,2096.5,13.418859]
[1742844116950,7.76895,2096.9,2096.5,13.418859]
[1742844117122,0.16983096,2096.6,2096.5,13.418859]
[1742844117323,7.76895,2096.9,2096.5,13.418859]
[1742844117518,7.76895,2096.9,2096.6,2.78781531]
[1742844119760,7.76895,2096.9,2096.6,3.59571531]
[1742844120962,4.76918,2096.8,2096.6,3.59571531]
[1742844121138,4.76948,2096.7,2096.5,4.634]
[1742844121962,9.53905,2096.7,2096.5,4.634]
[1742844122139,4.76962,2096.6,2096.5,4.634]
[1742844122526,4.93685219,2096.6,2096.5,4.634]
[1742844124079,4.76985,2096.5,2096.4,25.219]
[1742844124263,4.76985,2096.5,2096.4,4.632]
[1742844124572,4.93603577,2096.5,2096.4,4.632]
[1742844124981,4.77016,2096.4,2096.2,6.12]
[1742844125174,4.77016,2096.4,2096.3,4.632]
[1742844125475,4.76985,2096.5,2096.3,4.632]
[1742844126172,9.53949,2096.6,2096.3,4.632]
[1742844126366,4.76987,2096.5,2096.3,4.632]
[1742844128877,4.7697,2096.6,2096.3,4.632]
[1742844129180,9.53951,2096.6,2096.3,4.632]
[1742844129990,4.77,2096.5,2096.3,4.632]
[1742844131076,3.0,2096.9,2096.6,4.76945]
[1742844132152,7.76896,2096.9,2096.5,4.76984]
[1742844132360,7.76896,2096.9,2096.5,4.76973]
[1742844132560,4.76917,2096.8,2096.5,4.76973]
[1742844132778,4.76917,2096.8,2096.4,0.8047]
[1742844132995,4.76962,2096.6,2096.5,4.632]
[1742844133195,8.57232,2096.6,2096.5,4.632]
[1742844134044,4.77065,2096.2,2095.9,25.214]
[1742844134271,4.77065,2096.2,2096.0,4.631]
[1742844134479,4.77065,2096.2,2095.9,25.214]
[1742844134480,4.77079,2096.1,2095.9,25.214]
[1742844134701,4.77079,2096.1,2096.0,4.631]
[1742844135278,4.77099,2096.0,2095.9,25.214]
[1742844135452,4.77099,2096.0,2095.9,29.845]
[1742844137523,4.93031082,2096.0,2095.9,29.845]
[1742844138276,0.15932082,2096.0,2095.9,29.845]
[1742844140523,4.93031082,2096.0,2095.9,29.845]
[1742844142569,4.93031082,2096.0,2095.9,25.214]
[1742844142683,9.39443485,2096.0,2095.9,29.845]
[1742844144417,8.73521082,2096.0,2095.9,29.845]
[1742844145588,7.93031082,2096.0,2095.9,29.845]
[1742844146339,3.15932082,2096.0,2095.9,29.845]
[1742844146526,7.93031082,2096.0,2095.9,29.845]
[1742844146728,3.15932082,2096.0,2095.9,29.845]
[1742844147659,7.93031082,2096.0,2095.9,29.845]
[1742844148309,7.93031082,2096.0,2095.9,4.631]
[1742844150953,3.15932082,2096.0,2095.9,4.631]
[1742844153920,7.93031082,2096.0,2095.9,4.631]
[1742844154554,3.15932082,2096.0,2095.9,4.631]
[1742844158945,7.93031082,2096.0,2095.9,4.631]
[1742844159752,7.93031082,2096.0,2095.5,30.7859]
[1742844159753,4.77137,2095.9,2095.5,30.7859]
[1742844159929,0.15652937,2095.8,2095.6,4.631]
[1742844160961,4.92807937,2095.8,2095.6,4.631]
[1742844161374,4.77167,2095.7,2095.5,25.221]
[1742844161550,4.77167,2095.7,2095.6,4.631]
[1742844161754,4.92514913,2095.7,2095.6,4.631]
[1742844164971,0.15347913,2095.7,2095.6,4.631]
[1742844165379,4.77155,2095.8,2095.6,4.631]
[1742844165684,0.15167067,2095.7,2095.6,4.631]
[1742844165864,4.77155,2095.8,2095.6,4.631]
[1742844166068,0.15167067,2095.7,2095.6,4.631]
[1742844166250,9.54317,2095.8,2095.6,4.631]
[1742844166574,0.15167067,2095.7,2095.6,4.631]
[1742844166963,9.54317,2095.8,2095.6,4.631]
[1742844167163,0.15167067,2095.7,2095.6,4.631]
[1742844167548,9.54317,2095.8,2095.6,4.631]
[1742844167749,4.92334067,2095.7,2095.6,4.631]
[1742844176778,4.77232,2095.5,2095.3,0.7928]
[1742844176978,4.77258,2095.3,2095.2,25.222]
[1742844177289,8.68525943,2095.3,2095.2,29.851]
[1742844178160,7.92065943,2095.3,2095.2,29.851]
[1742844178486,8.74615943,2095.3,2095.2,29.851]
[1742844180279,14.75615943,2095.3,2095.2,25.222]
[1742844180470,4.7735,2094.9,2094.6,0.7874]
[1742844180670,9.54717,2094.9,2094.7,4.629]
[1742844180889,4.91922483,2094.8,2094.7,4.629]
[1742844181262,4.91922483,2094.8,2094.4,30.83051]
[1742844181263,4.91922483,2094.8,2094.4,26.0559]
[1742844181590,7.91922483,2094.8,2094.7,4.629]
[1742844181791,9.26623431,2094.8,2094.7,4.629]
[1742844182764,3.0,2094.6,2094.4,25.225]
[1742844182965,4.91838774,2094.5,2094.4,25.225]
[1742844183165,5.71708774,2094.5,2094.4,29.854]
[1742844183367,10.24362651,2094.5,2094.4,29.855]
[1742844183769,16.25362651,2094.5,2094.4,4.63]
[1742844184077,4.7754,2094.1,2093.7,4.77621]
[1742844184372,4.77577,2093.9,2093.8,4.63]
[1742844184572,0.13781088,2093.9,2093.8,4.63]
[1742844185196,4.77604,2093.8,2093.6,25.9789]
[1742844185502,4.77604,2093.8,2093.7,4.63]
[1742844185700,7.77604,2093.8,2093.7,4.63]
[1742844186271,3.0,2093.8,2093.7,4.63]
[1742844188000,6.01,2094.0,2093.8,5.60427]
[1742844188601,6.01,2094.0,2093.8,0.8285]
[1742844188805,6.01,2094.0,2093.7,13.347281]
[1742844188985,6.01,2094.0,2093.7,13.347181]
[1742844189176,6.01,2094.0,2093.8,4.77598]
[1742844189371,6.01,2094.0,2093.9,4.631]
[1742844189605,9.01,2094.0,2093.9,4.631]
[1742844189891,3.0,2094.0,2093.9,4.631]
[1742844190472,4.77513,2094.2,2093.9,4.631]
[1742844190683,3.0,2094.1,2093.9,4.631]
[1742844191114,7.77532,2094.1,2093.9,4.631]
[1742844191606,7.77513,2094.2,2093.9,4.631]
[1742844192108,12.55036,2094.2,2093.9,4.631]
[1742844192309,7.77513,2094.2,2093.9,4.631]
[1742844193027,4.77534,2094.1,2093.9,4.631]
[1742844193503,7.77513,2094.2,2093.9,4.631]
[1742844193705,3.0,2094.2,2093.9,4.631]
[1742844193904,3.42643919,2094.4,2094.0,0.824]
[1742844194137,3.42643919,2094.4,2094.1,4.77521]
[1742844194298,3.42643919,2094.4,2094.1,9.55039]
[1742844194501,3.42643919,2094.4,2094.2,4.77496]
[1742844195331,3.42643919,2094.4,2094.1,4.77518]
[1742844195517,3.42643919,2094.4,2094.1,11.050973]
[1742844195717,3.42643919,2094.4,2094.2,4.77498]
[1742844195917,3.42643919,2094.4,2094.3,4.77486]
[1742844196117,3.42643919,2094.4,2094.2,4.77508]
[1742844197635,0.1166362,2094.3,2094.2,4.77508]
[1742844197832,0.1166362,2094.3,2094.2,5.9625763]
[1742844202307,5.7124762,2094.3,2093.9,4.77555]
[1742844202499,4.77527,2094.2,2094.0,4.63]
[1742844202924,0.11583384,2094.1,2094.0,4.63]
[1742844203235,3.11583384,2094.1,2094.0,4.63]
[1742844203845,3.11583384,2094.1,2093.8,4.77578]
[1742844204149,7.77563,2094.0,2093.9,4.63]
[1742844204619,7.88903653,2094.0,2093.9,4.63]
[1742844205135,0.11340653,2094.0,2093.9,4.63]
[1742844206213,4.88894653,2094.0,2093.9,4.63]
[1742844206728,4.88894653,2094.0,2093.6,30.83138]
[1742844206921,5.67504653,2094.0,2093.7,4.63]
[1742844207811,10.45076653,2094.0,2093.7,4.63]
[1742844208218,4.77609,2093.8,2093.6,25.228]
[1742844208417,4.77623,2093.7,2093.6,25.228]
[1742844208620,4.77623,2093.7,2093.6,29.858]
[1742844208936,4.88832503,2093.7,2093.6,29.858]
[1742844210636,4.88832503,2093.7,2093.6,25.228]
[1742844210840,6.65596653,2093.7,2093.6,29.858]
[1742844211138,6.65596653,2093.7,2093.6,25.228]
[1742844211343,6.65596653,2093.7,2093.6,29.858]
[1742844211842,16.21596653,2093.7,2093.6,29.858]
[1742844213155,4.77723,2093.3,2093.0,0.7585]
[1742844213308,4.77723,2093.3,2093.1,4.63]
[1742844213309,4.77715,2093.3,2093.1,4.63]
[1742844213510,0.1089519,2093.2,2093.1,4.63]
[1742844213741,4.77707,2093.4,2093.1,4.63]
[1742844213949,4.77721,2093.3,2093.1,4.63]
[1742844214142,4.88620897,2093.3,2093.1,4.63]
[1742844215179,4.88620897,2093.3,2092.9,4.77798]
[1742844215443,4.7777,2093.1,2093.0,4.63]
[1742844215744,4.77744,2093.2,2093.0,4.63]
[1742844215910,0.10732466,2093.1,2093.0,4.63]
[1742844216643,4.88492466,2093.1,2093.0,4.63]
[1742844218157,0.10732466,2093.1,2093.0,4.63]
[1742844218659,4.88492466,2093.1,2093.0,4.63]
[1742844219226,0.10732466,2093.1,2093.0,4.63]
[1742844219431,0.10732466,2093.1,2093.0,10.22663]
[1742844219838,3.0,2093.5,2093.2,4.77734]
[1742844220244,4.77664,2093.6,2093.2,4.77734]
[1742844220461,4.77664,2093.6,2093.2,4.77726]
[1742844220627,0.7992,2093.7,2093.0,10.22662]
[1742844220831,0.7992,2093.7,2093.1,4.77752]
[1742844220832,4.77684,2093.5,2093.1,4.77752]
[1742844221030,4.77684,2093.5,2093.1,4.77745]
[1742844221258,4.77652,2093.6,2093.2,4.77727]
[1742844221470,7.77655,2093.6,2093.2,4.77726]
[1742844221762,3.0,2093.6,2093.4,0.8309]
[1742844221959,9.5522,2093.8,2093.5,4.631]
[1742844222359,4.77601,2093.8,2093.5,4.631]
[1742844222733,4.77623,2093.7,2093.5,4.631]
[1742844223359,7.77607,2093.8,2093.5,4.631]
[1742844223735,12.55224,2093.8,2093.5,4.631]
[1742844224067,7.77607,2093.8,2093.5,4.631]
[1742844225173,4.77632,2093.7,2093.5,4.631]
[1742844226835,7.77607,2093.8,2093.5,4.631]
[1742844227043,7.77607,2093.8,2093.5,9.40761]
[1742844227241,7.77607,2093.8,2093.5,4.631]
[1742844227442,0.10827062,2093.7,2093.5,4.631]
[1742844227846,7.77607,2093.8,2093.5,4.631]
[1742844228042,0.10785735,2093.6,2093.5,4.631]
[1742844228342,7.77607,2093.8,2093.5,9.40767]
[1742844228560,3.0,2093.8,2093.7,4.77623]
[1742844228753,3.0,2094.0,2093.7,4.77623]
[1742844228953,7.77562,2094.0,2093.6,4.77638]
[1742844229151,7.77605,2093.8,2093.5,10.20107]
[1742844229474,0.10838512,2093.7,2093.5,10.20095]
[1742844229644,0.10838512,2093.7,2093.5,14.97751]
[1742844229841,3.0,2093.9,2093.6,4.77645]
[1742844230167,9.631921,2093.9,2093.5,10.20095]
[1742844230374,4.77618,2093.8,2093.6,4.63]
[1742844230945,9.55234,2093.8,2093.6,4.63]
[1742844231467,4.77616,2093.8,2093.6,4.63]
[1742844231845,4.77623,2093.7,2093.6,4.63]
[1742844235350,6.2980471,2093.7,2093.6,4.63]
[1742844235781,4.77652,2093.6,2093.3,0.823]
[1742844235978,9.55306,2093.6,2093.3,0.823]
[1742844236181,4.77646,2093.6,2093.4,4.629]
[1742844236654,9.55311,2093.6,2093.4,4.629]
[1742844236860,4.77668,2093.5,2093.4,4.629]
[1742844237355,6.65052271,2093.6,2093.4,4.629]
[1742844237561,4.77668,2093.5,2093.4,4.629]
[1742844237965,4.77693,2093.4,2093.1,5.58436]
[1742844238180,4.77693,2093.4,2093.2,4.629]
[1742844238886,4.77693,2093.4,2093.3,4.629]
[1742844239455,4.77714,2093.3,2093.0,30.0267]
[1742844239657,4.77737,2093.2,2093.0,25.249]
[1742844239877,4.77737,2093.2,2093.1,4.629]
[1742844240076,4.7772,2093.3,2093.1,4.629]
[1742844240590,4.7772,2093.3,2093.2,4.629]
[1742844240986,4.7775,2093.2,2093.0,25.249]
[1742844241187,4.7775,2093.2,2093.1,4.629]
[1742844241584,4.7775,2093.2,2092.6,10.89859]
[1742844241585,0.7653,2092.8,2092.4,4.9023048]
[1742844241774,4.77842,2092.8,2092.5,4.629]
[1742844242002,6.7753,2093.0,2092.5,9.40774]
[1742844242209,3.0,2092.9,2092.5,9.40774]
[1742844242530,0.10141308,2092.8,2092.6,0.7736]
[1742844243081,4.87970308,2092.8,2092.6,0.7736]
[1742844244769,0.10141308,2092.8,2092.6,0.7736]
[1742844244968,4.87970308,2092.8,2092.6,0.7736]
[1742844245902,0.10141308,2092.8,2092.6,0.7736]
[1742844246803,0.10141308,2092.8,2092.6,5.55226]
[1742844247005,3.0,2092.9,2092.6,5.55226]
[1742844247202,0.10139017,2092.8,2092.6,5.55226]
[1742844247411,0.10139017,2092.8,2092.7,4.77851]
[1742844247616,6.01,2093.0,2092.8,4.77818]
[1742844247789,0.10080761,2092.9,2092.8,9.55631]
[1742844247990,0.10080761,2092.9,2092.8,10.37051]
[1742844248316,3.0,2093.3,2093.0,4.77773]
[1742844248520,4.77708,2093.4,2093.1,4.629]
[1742844248687,0.10410624,2093.2,2093.1,4.629]
[1742844248894,4.77708,2093.4,2093.1,4.629]
[1742844249110,0.104702,2093.2,2093.1,4.629]
[1742844249309,4.77708,2093.4,2093.1,4.629]
[1742844249511,0.10479996,2093.2,2093.1,4.629]
[1742844250124,4.77722,2093.3,2093.1,4.629]
[1742844250328,0.10479996,2093.2,2093.1,4.629]
[1742844250822,0.10323447,2093.2,2093.1,4.629]
[1742844251024,4.77722,2093.3,2093.1,4.629]
[1742844251210,0.10323447,2093.2,2093.1,4.629]
[1742844251410,4.77722,2093.3,2093.1,4.629]
[1742844251607,0.10323447,2093.2,2093.1,4.629]
[1742844251817,4.77708,2093.4,2093.1,4.629]
[1742844252027,0.1059861,2093.3,2093.1,4.629]
[1742844252730,0.1059861,2093.3,2093.1,6.04747]
[1742844253037,0.1059861,2093.3,2093.2,4.77737]
[1742844253180,0.1059861,2093.3,2093.2,5.61037]
[1742844253388,4.77622,2093.8,2093.3,4.77712]
[1742844253584,4.88722603,2093.7,2093.3,4.77712]
[1742844253886,4.88722603,2093.7,2093.3,6.420616]
[1742844254511,0.11096603,2093.7,2093.3,6.420466]
[1742844254712,0.11096603,2093.7,2093.3,1.643496]
[1742844254918,3.0,2093.8,2093.5,4.7765]
[1742844255114,0.0982035,2093.6,2093.5,4.7765]
[1742844255357,3.0,2093.8,2093.5,10.6071296]
[1742844255552,0.09996567,2093.6,2093.5,10.6071296]
[1742844256137,3.0,2093.8,2093.7,0.8116]
[1742844257257,4.77565,2094.0,2093.7,0.8116]
[1742844257435,0.10247755,2093.9,2093.7,0.8116]
[1742844257837,3.0,2094.1,2093.7,0.8116]
[1742844258020,0.10289057,2094.0,2093.7,0.8116]
[1742844258225,0.10289057,2094.0,2093.7,5.58772]
[1742844258628,0.10289057,2094.0,2093.7,5.63540713]
[1742844258828,4.7752,2094.2,2093.7,10.36374]
[1742844259131,0.10007977,2094.1,2093.9,4.77556]
[1742844259452,4.77486,2094.3,2094.0,5.3986]
[1742844259761,0.10122694,2094.2,2094.0,5.3986]
[1742844260061,4.77486,2094.3,2094.0,5.3986]
[1742844260228,0.10159663,2094.1,2094.0,5.3986]
[1742844260430,4.77486,2094.3,2094.0,5.3986]
[1742844260663,0.10169447,2094.1,2094.0,5.3986]
[1742844260838,4.77486,2094.3,2094.0,5.3986]
[1742844261037,0.1017923,2094.1,2094.0,5.3986]
[1742844261234,4.77486,2094.3,2094.0,5.3986]
[1742844261465,0.1025966,2094.2,2094.0,5.3986]
[1742844261833,4.77486,2094.3,2094.0,5.3986]
[1742844262030,0.1025966,2094.2,2094.0,5.3986]
[1742844262251,9.54987,2094.3,2094.0,5.3986]
[1742844262464,0.1021836,2094.1,2094.0,5.3986]
[1742844262632,4.77486,2094.3,2094.0,5.3986]
[1742844262834,0.10198795,2094.1,2094.0,5.3986]
[1742844263040,4.77486,2094.3,2094.0,5.3986]
[1742844263341,0.10240096,2094.2,2094.0,5.3986]
[1742844263667,4.77509,2094.2,2094.0,5.3986]
[1742844263869,0.10198795,2094.1,2094.0,5.3986]
[1742844264258,4.77486,2094.3,2094.0,5.3986]
[1742844264559,0.10198795,2094.1,2094.0,5.3986]
[1742844264891,0.10198795,2094.1,2093.7,6.39547696]
[1742844265039,4.77536,2094.1,2094.0,4.627]
[1742844265384,4.87734795,2094.1,2094.0,4.627]
[1742844265734,0.10198795,2094.1,2094.0,4.627]
[1742844267660,4.77521,2094.2,2094.0,4.627]
[1742844267868,4.8775036,2094.1,2094.0,4.627]
[1742844270160,0.1021836,2094.1,2094.0,4.627]
[1742844271178,9.55037,2094.2,2094.0,4.627]
[1742844271366,4.77532,2094.1,2094.0,4.627]
[1742844271673,4.88102458,2094.1,2094.0,4.627]
[1742844272152,0.10570458,2094.1,2094.0,4.627]
[1742844272475,4.88102458,2094.1,2094.0,4.627]
[1742844277079,0.10570458,2094.1,2094.0,4.627]
[1742844277281,0.10570458,2094.1,2094.0,10.17824]
[1742844277455,0.10570458,2094.1,2094.0,11.196064]
[1742844277656,7.77479,2094.4,2094.1,4.77524]
[1742844277845,0.10770048,2094.3,2094.2,4.77508]
[1742844278049,0.10770048,2094.3,2094.1,4.77524]
[1742844278850,0.10770048,2094.3,2094.0,11.195984]
[1742844279176,0.10770048,2094.3,2094.0,14.95356]
[1742844279383,0.10770048,2094.3,2094.0,10.1781]
[1742844280077,0.10770048,2094.3,2094.0,14.95349]
[1742844280280,0.10770048,2094.3,2094.1,4.77528]
[1742844280452,0.10770048,2094.3,2094.2,4.77509]
[1742844280653,3.0,2094.5,2094.2,4.77509]
[1742844280854,0.10857203,2094.4,2094.3,0.7883]
[1742844290597,0.10857203,2094.4,2094.3,5.56316]
[1742844291159,0.10857203,2094.4,2094.3,0.7883]
[1742844291676,0.10857203,2094.4,2094.2,9.5499]
[1742844291677,0.10857203,2094.4,2094.0,30.84433]
[1742844291881,4.88331203,2094.4,2094.1,4.623]
[1742844292094,4.77487,2094.3,2094.2,4.623]
[1742844292591,0.10976458,2094.3,2094.2,4.623]
[1742844293402,5.53231,2094.5,2094.2,4.623]
[1742844293709,0.11017738,2094.4,2094.2,4.623]
[1742844295178,0.11017738,2094.4,2094.2,9.39806]
[1742844295910,4.88483738,2094.4,2094.1,4.77521]
[1742844296113,0.11017738,2094.4,2094.2,4.623]
[1742844300216,9.65962738,2094.4,2094.2,4.623]
[1742844300531,4.88482738,2094.4,2094.2,4.623]
[1742844303194,0.11017738,2094.4,2094.2,4.623]
[1742844304149,12.54902,2094.5,2094.2,4.623]
[1742844304832,4.7747,2094.4,2094.2,4.623]
[1742844306019,12.54902,2094.5,2094.2,4.623]
[1742844306223,4.77466,2094.4,2094.2,4.623]
[1742844308349,7.77447,2094.5,2094.2,9.39801]
[1742844308554,5.52774,2094.9,2094.3,0.7985]
[1742844308763,9.54764,2094.8,2094.4,4.77449]
[1742844308910,3.0,2094.7,2094.4,4.77449]
[1742844309116,3.0,2094.7,2094.4,6.271574]
[1742844309768,4.77306,2095.1,2094.4,6.271574]
[1742844309769,0.7541,2095.1,2094.4,1.497084]
[1742844310066,5.52727,2095.1,2094.7,5.57236]
[1742844310263,5.52727,2095.1,2094.8,4.622]
[1742844310264,4.77311,2095.1,2094.8,4.622]
[1742844310425,9.54634,2095.1,2094.8,4.622]
[1742844311146,4.77311,2095.1,2094.8,4.622]
[1742844313257,4.77327,2095.0,2094.8,4.622]
[1742844313467,4.77311,2095.1,2094.8,4.622]
[1742844314031,4.77311,2095.1,2094.8,9.3957]
[1742844314364,4.77311,2095.1,2094.8,10.892501]
[1742844314877,4.77311,2095.1,2094.8,6.118801]
[1742844316861,4.77311,2095.1,2094.8,4.622]
[1742844318759,4.77311,2095.1,2094.8,9.3957]
[1742844323163,4.77284,2095.2,2094.8,9.39557]
[1742844323466,4.77304,2095.1,2094.8,9.39557]
[1742844324570,9.54627,2095.1,2094.8,4.622]
[1742844324744,4.77304,2095.1,2094.8,4.622]
[1742844327441,4.77304,2095.1,2094.8,10.892437]
[1742844328343,4.77284,2095.2,2094.8,10.892437]
[1742844328541,9.54583,2095.2,2094.8,10.892437]
[1742844328872,4.77308,2095.1,2094.8,10.892437]
[1742844331602,3.0,2095.4,2095.0,0.7891]
[1742844331749,3.0,2095.4,2095.1,4.77295]
[1742844331951,7.77245,2095.4,2095.0,5.5623]
[1742844332150,12.54501,2095.4,2095.0,5.5623]
[1742844332379,4.7726,2095.3,2095.0,5.5623]
[1742844333078,4.7726,2095.3,2095.0,0.7891]
[1742844333399,4.7726,2095.3,2095.0,5.56228]
[1742844333898,4.7726,2095.3,2095.0,0.7891]
[1742844334212,4.7726,2095.3,2095.0,5.56232]
[1742844334404,7.77245,2095.4,2095.0,5.56232]
[1742844335187,7.77245,2095.4,2095.0,5.56221]
[1742844335391,4.77245,2095.4,2095.1,4.77294]
[1742844336989,4.77245,2095.4,2095.0,7.2076667]
[1742844337197,4.77266,2095.3,2095.1,4.618]
[1742844337769,5.54581,2095.2,2095.1,4.618]
[1742844338677,9.577657,2095.2,2095.1,4.618]
[1742844339899,3.773,2095.2,2095.1,4.618]
[1742844340199,3.0,2095.2,2094.9,5.5816]
[1742844340500,7.77281,2095.2,2095.1,4.617]
[1742844342886,0.8146,2095.1,2094.5,26.0407]
[1742844343075,4.77408,2094.7,2094.6,4.617]
[1742844343289,8.58868,2094.7,2094.6,4.617]
[1742844344418,7.77408,2094.7,2094.6,4.617]
[1742844344827,3.0,2094.7,2094.6,4.617]
[1742844345206,7.77395,2094.7,2094.6,4.617]
[1742844345391,9.110598,2094.7,2094.6,4.617]
[1742844347383,5.53478,2094.6,2094.5,25.237]
[1742844347595,5.53478,2094.6,2094.5,29.854]
[1742844347795,4.77525,2094.2,2093.8,0.7798]
[1742844348020,4.77525,2094.2,2093.6,31.355]
[1742844348021,7.77588,2093.9,2093.6,26.0148]
[1742844348212,7.77588,2093.9,2093.7,4.617]
[1742844348728,7.776,2093.8,2093.7,4.617]
[1742844349084,3.0,2093.8,2093.7,4.617]
[1742844351435,5.55215,2094.2,2093.7,5.3984]
[1742844351634,4.7749,2094.3,2093.9,4.77574]
[1742844351801,3.0,2094.2,2093.9,4.77574]
[1742844352007,7.7751,2094.2,2093.9,4.77574]
[1742844352501,7.7751,2094.2,2093.7,13.637464]